{"text_format":"3","workbook":"xlsx","n_sheets":1,"sheets":["Budget mensuel personnel"],"read":"whole","date_system":"1900"}

{"sheet":"Budget mensuel personnel","index":0,"n_rows":64,"n_cols":10,"rows_kept":64,"merged":[[1,1,1,9],[2,1,2,9],[4,1,6,1],[4,2,4,3],[4,6,5,8],[4,9,5,9],[5,2,5,3],[6,2,6,3],[6,6,7,8],[6,9,7,9],[7,1,9,1],[7,2,7,3],[8,2,8,3],[8,6,9,8],[8,9,9,9],[9,2,9,3],[22,6,22,9],[23,1,23,4],[31,6,31,9],[33,1,33,4],[38,6,38,9],[40,1,40,4],[44,6,44,9],[46,1,46,4],[50,6,50,9],[54,1,54,4],[57,6,57,9],[58,6,59,8],[58,9,59,9],[60,6,61,8],[60,9,61,9],[62,6,63,8],[62,9,63,9]]}
[]
[null,"Budget mensuel personnel"]
[]
[]
[null,"REVENUS MENSUELS PRÉVUS","Revenu 1",null,{"v":2500,"d":"2,500 $"},null,"SOLDE PRÉVISIONNEL (revenus prévisionnels moins les dépenses)",null,null,{"$f":"E7-J59","v":{"v":940,"d":"940 $"}}]
[null,null,"Revenu supplémentaire",null,{"v":500,"d":"500 $"}]
[null,null,"Revenu mensuel total",null,{"$f":"SUM(E5:E6)","v":{"v":3000,"d":"3,000 $"}},null,"SOLDE RÉEL (revenus réels moins les dépenses)",null,null,{"$f":"E10-J61","v":{"v":960,"d":"960 $"}}]
[null,"REVENUS MENSUELS RÉELS","Revenu 1",null,{"v":2500,"d":"2,500 $"}]
[null,null,"Revenu supplémentaire",null,{"v":500,"d":"500 $"},null,"DIFFÉRENCE (réel moins projeté)",null,null,{"$f":"J7-J5","v":{"v":20,"d":"20 $"}}]
[null,null,"Revenu mensuel total",null,{"$f":"SUM(E8:E9)","v":{"v":3000,"d":"3,000 $"}}]
[]
[null,"LOGEMENT","Coût prévu","Coût réel","Écart",null,"LOISIRS","Coût prévu","Coût réel","Écart"]
[null,"Emprunt ou loyer",{"v":1500,"d":"1,500 $"},{"v":1400,"d":"1,400 $"},{"$f":"Tableau1[[#This Row],[Coût prévu]]-Tableau1[[#This Row],[Coût réel]]","v":{"v":100,"d":"100 $"}},null,"Vidéo/DVD",{"v":0,"d":"0 $"},{"v":50,"d":"50 $"},{"$f":"Tableau2[[#This Row],[Coût prévu]]-Tableau2[[#This Row],[Coût réel]]","v":{"v":-50,"d":"-50 $"}}]
[null,"Téléphone",{"v":60,"d":"60 $"},{"v":100,"d":"100 $"},{"$f":"Tableau1[[#This Row],[Coût prévu]]-Tableau1[[#This Row],[Coût réel]]","v":{"v":-40,"d":"-40 $"}},null,"CD",null,null,{"$f":"Tableau2[[#This Row],[Coût prévu]]-Tableau2[[#This Row],[Coût réel]]","v":{"v":0,"d":"0 $"}}]
[null,"Électricité",{"v":50,"d":"50 $"},{"v":60,"d":"60 $"},{"$f":"Tableau1[[#This Row],[Coût prévu]]-Tableau1[[#This Row],[Coût réel]]","v":{"v":-10,"d":"-10 $"}},null,"Cinéma",null,null,{"$f":"Tableau2[[#This Row],[Coût prévu]]-Tableau2[[#This Row],[Coût réel]]","v":{"v":0,"d":"0 $"}}]
[null,"Gaz",{"v":200,"d":"200 $"},{"v":180,"d":"180 $"},{"$f":"Tableau1[[#This Row],[Coût prévu]]-Tableau1[[#This Row],[Coût réel]]","v":{"v":20,"d":"20 $"}},null,"Concerts",null,null,{"$f":"Tableau2[[#This Row],[Coût prévu]]-Tableau2[[#This Row],[Coût réel]]","v":{"v":0,"d":"0 $"}}]
[null,"Eau",null,null,{"$f":"Tableau1[[#This Row],[Coût prévu]]-Tableau1[[#This Row],[Coût réel]]","v":{"v":0,"d":"0 $"}},null,"Événements sportifs",null,null,{"$f":"Tableau2[[#This Row],[Coût prévu]]-Tableau2[[#This Row],[Coût réel]]","v":{"v":0,"d":"0 $"}}]
[null,"Abonnement câble",null,null,{"$f":"Tableau1[[#This Row],[Coût prévu]]-Tableau1[[#This Row],[Coût réel]]","v":{"v":0,"d":"0 $"}},null,"Théâtre",null,null,{"$f":"Tableau2[[#This Row],[Coût prévu]]-Tableau2[[#This Row],[Coût réel]]","v":{"v":0,"d":"0 $"}}]
[null,"Enlèvement des ordures ménagères",null,null,{"$f":"Tableau1[[#This Row],[Coût prévu]]-Tableau1[[#This Row],[Coût réel]]","v":{"v":0,"d":"0 $"}},null,"Autres",null,null,{"$f":"Tableau2[[#This Row],[Coût prévu]]-Tableau2[[#This Row],[Coût réel]]","v":{"v":0,"d":"0 $"}}]
[null,"Entretien ou réparations",null,null,{"$f":"Tableau1[[#This Row],[Coût prévu]]-Tableau1[[#This Row],[Coût réel]]","v":{"v":0,"d":"0 $"}},null,"Autres",null,null,{"$f":"Tableau2[[#This Row],[Coût prévu]]-Tableau2[[#This Row],[Coût réel]]","v":{"v":0,"d":"0 $"}}]
[null,"Fournitures",null,null,{"$f":"Tableau1[[#This Row],[Coût prévu]]-Tableau1[[#This Row],[Coût réel]]","v":{"v":0,"d":"0 $"}},null,"Autres",null,null,{"$f":"Tableau2[[#This Row],[Coût prévu]]-Tableau2[[#This Row],[Coût réel]]","v":{"v":0,"d":"0 $"}}]
[null,"Autres",null,null,{"$f":"Tableau1[[#This Row],[Coût prévu]]-Tableau1[[#This Row],[Coût réel]]","v":{"v":0,"d":"0 $"}},null,"Total",{"$f":"SUBTOTAL(109,Tableau2[Coût prévu])","v":{"v":0,"d":"0 $"}},{"$f":"SUBTOTAL(109,Tableau2[Coût réel])","v":{"v":50,"d":"50 $"}},{"$f":"SUBTOTAL(109,Tableau2[Écart])","v":{"v":-50,"d":"-50 $"}}]
[null,"Total",{"$f":"SUBTOTAL(109,Tableau1[Coût prévu])","v":{"v":1810,"d":"1,810 $"}},{"$f":"SUBTOTAL(109,Tableau1[Coût réel])","v":{"v":1740,"d":"1,740 $"}},{"$f":"SUBTOTAL(109,Tableau1[Écart])","v":{"v":70,"d":"70 $"}}]
[{"$nulls":6},"CRÉDITS","Coût prévu","Coût réel","Écart"]
[null,"TRANSPORTS","Coût prévu","Coût réel","Écart",null,"Personnels",null,null,{"$f":"Tableau8[[#This Row],[Coût prévu]]-Tableau8[[#This Row],[Coût réel]]","v":{"v":0,"d":"0 $"}}]
[null,"Paiement véhicule",{"v":250,"d":"250 $"},{"v":250,"d":"250 $"},{"$f":"Tableau3[[#This Row],[Coût prévu]]-Tableau3[[#This Row],[Coût réel]]","v":{"v":0,"d":"0 $"}},null,"Étudiants",null,null,{"$f":"Tableau8[[#This Row],[Coût prévu]]-Tableau8[[#This Row],[Coût réel]]","v":{"v":0,"d":"0 $"}}]
[null,"Bus/taxi",null,null,{"$f":"Tableau3[[#This Row],[Coût prévu]]-Tableau3[[#This Row],[Coût réel]]","v":{"v":0,"d":"0 $"}},null,"Carte de crédit",null,null,{"$f":"Tableau8[[#This Row],[Coût prévu]]-Tableau8[[#This Row],[Coût réel]]","v":{"v":0,"d":"0 $"}}]
[null,"Assurance",null,null,{"$f":"Tableau3[[#This Row],[Coût prévu]]-Tableau3[[#This Row],[Coût réel]]","v":{"v":0,"d":"0 $"}},null,"Carte de crédit",null,null,{"$f":"Tableau8[[#This Row],[Coût prévu]]-Tableau8[[#This Row],[Coût réel]]","v":{"v":0,"d":"0 $"}}]
[null,"Autorisation",null,null,{"$f":"Tableau3[[#This Row],[Coût prévu]]-Tableau3[[#This Row],[Coût réel]]","v":{"v":0,"d":"0 $"}},null,"Carte de crédit",null,null,{"$f":"Tableau8[[#This Row],[Coût prévu]]-Tableau8[[#This Row],[Coût réel]]","v":{"v":0,"d":"0 $"}}]
[null,"Carburant",null,null,{"$f":"Tableau3[[#This Row],[Coût prévu]]-Tableau3[[#This Row],[Coût réel]]","v":{"v":0,"d":"0 $"}},null,"Autres",null,null,{"$f":"Tableau8[[#This Row],[Coût prévu]]-Tableau8[[#This Row],[Coût réel]]","v":{"v":0,"d":"0 $"}}]
[null,"Entretien",null,null,{"$f":"Tableau3[[#This Row],[Coût prévu]]-Tableau3[[#This Row],[Coût réel]]","v":{"v":0,"d":"0 $"}},null,"Total",{"$f":"SUBTOTAL(109,Tableau8[Coût prévu])","v":{"v":0,"d":"0 $"}},{"$f":"SUBTOTAL(109,Tableau8[Coût réel])","v":{"v":0,"d":"0 $"}},{"$f":"SUBTOTAL(109,Tableau8[Écart])","v":{"v":0,"d":"0 $"}}]
[null,"Autres",null,null,{"$f":"Tableau3[[#This Row],[Coût prévu]]-Tableau3[[#This Row],[Coût réel]]","v":{"v":0,"d":"0 $"}}]
[null,"Total",{"$f":"SUBTOTAL(109,Tableau3[Coût prévu])","v":{"v":250,"d":"250 $"}},{"$f":"SUBTOTAL(109,Tableau3[Coût réel])","v":{"v":250,"d":"250 $"}},{"$f":"SUBTOTAL(109,Tableau3[Écart])","v":{"v":0,"d":"0 $"}},null,"TAXES","Coût prévu","Coût réel","Écart"]
[{"$nulls":6},"Fédéraux",null,null,{"$f":"Tableau9[[#This Row],[Coût prévu]]-Tableau9[[#This Row],[Coût réel]]","v":{"v":0,"d":"0 $"}}]
[null,"ASSURANCES","Coût prévu","Coût réel","Écart",null,"Régionaux",null,null,{"$f":"Tableau9[[#This Row],[Coût prévu]]-Tableau9[[#This Row],[Coût réel]]","v":{"v":0,"d":"0 $"}}]
[null,"Maison",null,null,{"$f":"Tableau4[[#This Row],[Coût prévu]]-Tableau4[[#This Row],[Coût réel]]","v":{"v":0,"d":"0 $"}},null,"Locaux",null,null,{"$f":"Tableau9[[#This Row],[Coût prévu]]-Tableau9[[#This Row],[Coût réel]]","v":{"v":0,"d":"0 $"}}]
[null,"Santé",null,null,{"$f":"Tableau4[[#This Row],[Coût prévu]]-Tableau4[[#This Row],[Coût réel]]","v":{"v":0,"d":"0 $"}},null,"Autres",null,null,{"$f":"Tableau9[[#This Row],[Coût prévu]]-Tableau9[[#This Row],[Coût réel]]","v":{"v":0,"d":"0 $"}}]
[null,"Vie",null,null,{"$f":"Tableau4[[#This Row],[Coût prévu]]-Tableau4[[#This Row],[Coût réel]]","v":{"v":0,"d":"0 $"}},null,"Total",{"$f":"SUBTOTAL(109,Tableau9[Coût prévu])","v":{"v":0,"d":"0 $"}},{"$f":"SUBTOTAL(109,Tableau9[Coût réel])","v":{"v":0,"d":"0 $"}},{"$f":"SUBTOTAL(109,Tableau9[Écart])","v":{"v":0,"d":"0 $"}}]
[null,"Autres",null,null,{"$f":"Tableau4[[#This Row],[Coût prévu]]-Tableau4[[#This Row],[Coût réel]]","v":{"v":0,"d":"0 $"}}]
[null,"Total",{"$f":"SUBTOTAL(109,Tableau4[Coût prévu])","v":{"v":0,"d":"0 $"}},{"$f":"SUBTOTAL(109,Tableau4[Coût réel])","v":{"v":0,"d":"0 $"}},{"$f":"SUBTOTAL(109,Tableau4[Écart])","v":{"v":0,"d":"0 $"}},null,"ÉCONOMIES OU INVESTISSEMENTS","Coût prévu","Coût réel","Écart"]
[{"$nulls":6},"Compte d’épargne retraite",null,null,{"$f":"Tableau10[[#This Row],[Coût prévu]]-Tableau10[[#This Row],[Coût réel]]","v":{"v":0,"d":"0 $"}}]
[null,"ALIMENTATION","Coût prévu","Coût réel","Écart",null,"Compte d’investissement",null,null,{"$f":"Tableau10[[#This Row],[Coût prévu]]-Tableau10[[#This Row],[Coût réel]]","v":{"v":0,"d":"0 $"}}]
[null,"Courses",null,null,{"$f":"Tableau5[[#This Row],[Coût prévu]]-Tableau5[[#This Row],[Coût réel]]","v":{"v":0,"d":"0 $"}},null,"Autres",null,null,{"$f":"Tableau10[[#This Row],[Coût prévu]]-Tableau10[[#This Row],[Coût réel]]","v":{"v":0,"d":"0 $"}}]
[null,"Restaurant",null,null,{"$f":"Tableau5[[#This Row],[Coût prévu]]-Tableau5[[#This Row],[Coût réel]]","v":{"v":0,"d":"0 $"}},null,"Total",{"$f":"SUBTOTAL(109,Tableau10[Coût prévu])","v":{"v":0,"d":"0 $"}},{"$f":"SUBTOTAL(109,Tableau10[Coût réel])","v":{"v":0,"d":"0 $"}},{"$f":"SUBTOTAL(109,Tableau10[Écart])","v":{"v":0,"d":"0 $"}}]
[null,"Autres",null,null,{"$f":"Tableau5[[#This Row],[Coût prévu]]-Tableau5[[#This Row],[Coût réel]]","v":{"v":0,"d":"0 $"}}]
[null,"Total",{"$f":"SUBTOTAL(109,Tableau5[Coût prévu])","v":{"v":0,"d":"0 $"}},{"$f":"SUBTOTAL(109,Tableau5[Coût réel])","v":{"v":0,"d":"0 $"}},{"$f":"SUBTOTAL(109,Tableau5[Écart])","v":{"v":0,"d":"0 $"}},null,"CADEAUX ET DONS","Coût prévu","Coût réel","Écart"]
[{"$nulls":6},"Association caritative 1",null,null,{"$f":"Tableau11[[#This Row],[Coût prévu]]-Tableau11[[#This Row],[Coût réel]]","v":{"v":0,"d":"0 $"}}]
[null,"ANIMAUX","Coût prévu","Coût réel","Écart",null,"Association caritative 2",null,null,{"$f":"Tableau11[[#This Row],[Coût prévu]]-Tableau11[[#This Row],[Coût réel]]","v":{"v":0,"d":"0 $"}}]
[null,"Alimentation",null,null,{"$f":"Tableau6[[#This Row],[Coût prévu]]-Tableau6[[#This Row],[Coût réel]]","v":{"v":0,"d":"0 $"}},null,"Association caritative 3",null,null,{"$f":"Tableau11[[#This Row],[Coût prévu]]-Tableau11[[#This Row],[Coût réel]]","v":{"v":0,"d":"0 $"}}]
[null,"Frais médicaux",null,null,{"$f":"Tableau6[[#This Row],[Coût prévu]]-Tableau6[[#This Row],[Coût réel]]","v":{"v":0,"d":"0 $"}},null,"Total",{"$f":"SUBTOTAL(109,Tableau11[Coût prévu])","v":{"v":0,"d":"0 $"}},{"$f":"SUBTOTAL(109,Tableau11[Coût réel])","v":{"v":0,"d":"0 $"}},{"$f":"SUBTOTAL(109,Tableau11[Écart])","v":{"v":0,"d":"0 $"}}]
[null,"Toilettage",null,null,{"$f":"Tableau6[[#This Row],[Coût prévu]]-Tableau6[[#This Row],[Coût réel]]","v":{"v":0,"d":"0 $"}}]
[null,"Jouets",null,null,{"$f":"Tableau6[[#This Row],[Coût prévu]]-Tableau6[[#This Row],[Coût réel]]","v":{"v":0,"d":"0 $"}},null,"JURIQUE","Coût prévu","Coût réel","Écart"]
[null,"Autres",null,null,{"$f":"Tableau6[[#This Row],[Coût prévu]]-Tableau6[[#This Row],[Coût réel]]","v":{"v":0,"d":"0 $"}},null,"Avocat",null,null,{"$f":"Tableau12[[#This Row],[Coût prévu]]-Tableau12[[#This Row],[Coût réel]]","v":{"v":0,"d":"0 $"}}]
[null,"Total",{"$f":"SUBTOTAL(109,Tableau6[Coût prévu])","v":{"v":0,"d":"0 $"}},{"$f":"SUBTOTAL(109,Tableau6[Coût réel])","v":{"v":0,"d":"0 $"}},{"$f":"SUBTOTAL(109,Tableau6[Écart])","v":{"v":0,"d":"0 $"}},null,"Pension alimentaire",null,null,{"$f":"Tableau12[[#This Row],[Coût prévu]]-Tableau12[[#This Row],[Coût réel]]","v":{"v":0,"d":"0 $"}}]
[{"$nulls":6},"Paiements suite à un recours ou à un jugement",null,null,{"$f":"Tableau12[[#This Row],[Coût prévu]]-Tableau12[[#This Row],[Coût réel]]","v":{"v":0,"d":"0 $"}}]
[null,"SOINS PERSONNELS","Coût prévu","Coût réel","Écart",null,"Autres",null,null,{"$f":"Tableau12[[#This Row],[Coût prévu]]-Tableau12[[#This Row],[Coût réel]]","v":{"v":0,"d":"0 $"}}]
[null,"Frais médicaux",null,null,{"$f":"Tableau7[[#This Row],[Coût prévu]]-Tableau7[[#This Row],[Coût réel]]","v":{"v":0,"d":"0 $"}},null,"Total",{"$f":"SUBTOTAL(109,Tableau12[Coût prévu])","v":{"v":0,"d":"0 $"}},{"$f":"SUBTOTAL(109,Tableau12[Coût réel])","v":{"v":0,"d":"0 $"}},{"$f":"SUBTOTAL(109,Tableau12[Écart])","v":{"v":0,"d":"0 $"}}]
[null,"Coiffeur/manucure",null,null,{"$f":"Tableau7[[#This Row],[Coût prévu]]-Tableau7[[#This Row],[Coût réel]]","v":{"v":0,"d":"0 $"}}]
[null,"Habillement",null,null,{"$f":"Tableau7[[#This Row],[Coût prévu]]-Tableau7[[#This Row],[Coût réel]]","v":{"v":0,"d":"0 $"}},null,"COÛT TOTAL PRÉVU",null,null,{"$f":"SUM(C23,C33,C40,C46,C54,C64,H22,H31,H38,H44,H50,H57)","v":{"v":2060,"d":"2,060 $"}}]
[null,"Nettoyage à sec",null,null,{"$f":"Tableau7[[#This Row],[Coût prévu]]-Tableau7[[#This Row],[Coût réel]]","v":{"v":0,"d":"0 $"}}]
[null,"Club de sport",null,null,{"$f":"Tableau7[[#This Row],[Coût prévu]]-Tableau7[[#This Row],[Coût réel]]","v":{"v":0,"d":"0 $"}},null,"COÛT RÉEL TOTAL",null,null,{"$f":"SUM(D23,D33,D40,D46,D54,D64,I22,I31,I38,I44,I50,I57)","v":{"v":2040,"d":"2,040 $"}}]
[null,"Cotisations ou frais d’inscription",null,null,{"$f":"Tableau7[[#This Row],[Coût prévu]]-Tableau7[[#This Row],[Coût réel]]","v":{"v":0,"d":"0 $"}}]
[null,"Autres",null,null,{"$f":"Tableau7[[#This Row],[Coût prévu]]-Tableau7[[#This Row],[Coût réel]]","v":{"v":0,"d":"0 $"}},null,"DIFFÉRENCE TOTALE",null,null,{"$f":"SUM(E23,E33,E40,E46,E54,E64,J22,J31,J38,J44,J50,J57)","v":{"v":20,"d":"20 $"}}]
[null,"Total",{"$f":"SUBTOTAL(109,Tableau7[Coût prévu])","v":{"v":0,"d":"0 $"}},{"$f":"SUBTOTAL(109,Tableau7[Coût réel])","v":{"v":0,"d":"0 $"}},{"$f":"SUBTOTAL(109,Tableau7[Écart])","v":{"v":0,"d":"0 $"}}]